fUST/lending_fUST_20250829
["ID","MTS","AMOUNT","RATE_DAILY","PERIOD"]
[381950354,1756440640268,-151.0,0.000248,7]
[381950355,1756440640277,-423.281792,0.000248,7]
[381950356,1756440640287,-151.0,0.000248,7]
[381950357,1756440640296,-423.281792,0.000248,7]
[381950359,1756440640305,-151.0,0.000248,7]
[381950361,1756440640314,-151.0,0.000248,7]
[381950363,1756440640324,-672.727,0.0002483,8]
[381950364,1756440640334,-194.296,0.0002483,8]
[381950365,1756440640345,-150.0,0.00024873,2]
[381950367,1756440640354,-94940.04981757,0.0002489,2]
[381950381,1756440640493,-56328.57964743,0.0002489,2]
[381950382,1756440640503,-151.0,0.000249,9]
[381950383,1756440640512,-843504.665763,0.000249,2]
[381950384,1756440640521,-423.281792,0.000249,7]
[381950385,1756440640532,-423.281792,0.000249,7]
[381950386,1756440640542,-151.0,0.000249,7]
[381950387,1756440640552,-423.281792,0.000249,7]
[381950388,1756440640563,-151.0,0.000249,7]
[381950389,1756440640573,-1029.10657735,0.000249,2]
[381950390,1756440640584,-423.281792,0.000249,7]
[381950391,1756440640595,-151.0,0.000249,7]
[381950392,1756440640607,-151.0,0.000249,7]
[381950393,1756440640616,-160.12278592,0.00025,2]
[381950394,1756440640626,-216.21406313,0.00025,10]
[381950395,1756440640635,-216.21406313,0.00025,10]
[381950396,1756440640733,-216.19394328,0.00025033,2]
[381950397,1756440640743,-1500.0,0.00025068,2]
[381950398,1756440640753,-1500.0,0.00025068,2]
[381950399,1756440640763,-1500.0,0.00025068,2]
[381950400,1756440640773,-350.0,0.00025068,2]
[381950401,1756440640783,-1500.0,0.00025068,2]
[381950402,1756440640793,-1376.0520506,0.00025068,2]
[381950403,1756440640802,-1500.0,0.00025068,2]
[381950404,1756440640811,-1500.0,0.00025068,2]
[381950405,1756440640821,-1500.0,0.00025068,2]
[381950406,1756440640830,-1500.0,0.00025068,2]
[381950407,1756440640839,-1007.65629494,0.00025121,2]
[381950408,1756440640848,-260.0,0.00025141,2]
[381950409,1756440640858,-9000.0,0.00025202,3]
[381950410,1756440640868,-250.0,0.00025205,2]
[381950411,1756440640878,-845.67,0.000253,7]
[381950412,1756440640888,-300.0,0.00025421,2]
[381950413,1756440640897,-6000.0,0.00025526,3]
[381950414,1756440640907,-2000.0,0.00025616,2]
[381950415,1756440640916,-1483.56903053,0.00025616,2]
[381950416,1756440640925,-1000.0,0.00025616,2]
[381950417,1756440640935,-551.10708134,0.00025616,2]
[381950418,1756440640944,-2000.0,0.00025616,2]
[381950419,1756440640954,-2004.418764,0.00025616,2]
[381950420,1756440640963,-2000.0,0.00025616,2]
[381950421,1756440640972,-2000.0,0.00025616,2]
[381950422,1756440640982,-2005.1764754,0.00025616,2]
[381950423,1756440640991,-360.0,0.00025689,2]
[381950424,1756440641001,-200.52458134,0.00025753,2]
[381950425,1756440641010,-5000.0,0.00025781,2]
[381950426,1756440641019,-8000.0,0.00025852,3]
[381950427,1756440641029,-3338.80299861,0.00025857,4]
[381950428,1756440641038,-875.56,0.00025867,3]
[381950429,1756440641048,-437.78,0.00025867,3]
[381950430,1756440641057,-161.0,0.000259,5]
[381950431,1756440641066,-47060.1565773,0.00025966,2]
[381950432,1756440641076,-1152.0,0.00025966,2]
[381950433,1756440641085,-450.74586313,0.00025968,2]
[381950434,1756440641094,-2577.12290798,0.00025973,2]
[381950435,1756440641104,-294.17554455,0.00025973,2]
[381950436,1756440641114,-1175.52547601,0.00025973,2]
[381950437,1756440641123,-3321.95565939,0.00025973,2]
[381950438,1756440641133,-500.0,0.00025978,2]
[381950439,1756440641143,-151.0,0.00025978,2]
[381950440,1756440641152,-151.0,0.00025978,2]
[381950441,1756440641162,-199.05647522,0.00025978,2]
[381950442,1756440641176,-151.97507828,0.00025978,2]
[381950443,1756440641185,-500.0,0.00025978,2]
[381950444,1756440641195,-201.25227768,0.00025978,2]
[381950445,1756440641204,-8456.2805641,0.00025982,2]
[381950446,1756440641214,-2273.7218337,0.00025993,2]
[381950447,1756440641223,-253.76825456,0.00025996,2]
[381950448,1756440641233,-161.0,0.00026,4]
[381950449,1756440641243,-818940.06301178,0.00026,4]
[381950450,1756440641576,-67.85298628,0.00020362,2]
[381950458,1756440644751,-4932.14701372,0.00020362,2]
[381950459,1756440644761,-150.88385243,0.0002056,10]
[381950465,1756440647035,-485.73899706,0.0002056,10]
[381950466,1756440647046,-400.42715051,0.0002056,10]
[381950467,1756440647055,-651.40522541,0.00022986,2]
[381950468,1756440647064,-3549.67641102,0.000239,2]
[381950470,1756440865526,291.72882443,0.000167,2]
[381950471,1756440865547,710.27117557,0.000167,2]
[381950472,1756440909503,187.867935,0.00013699,2]
[381950476,1756441485374,152.32151566,0.00030282,60]
[381950480,1756441693967,417.55057303,0.00010618,2]
[381950481,1756441695845,8684.3203164,0.000125,2]
[381950482,1756441695867,2764.38489296,0.000125,2]
[381950483,1756441709435,284.33416824,0.0001,2]
[381950484,1756441723755,211.94984539,0.00016,2]
[381950503,1756441832433,-300.0,0.00016999,2]
[381950504,1756441832443,-818.45157058,0.00016999,2]
[381950563,1756441838598,-203.73438723,0.00016899,2]
[381950565,1756441838608,-381.54842942,0.00016999,2]
[381950567,1756441838617,-500.0,0.00016999,2]
[381950569,1756441838627,-500.0,0.00016999,2]
[381950571,1756441838636,-606.52529816,0.00016999,2]
[381950591,1756441838809,-230.18890568,0.00016999,2]
[381950594,1756441838819,-246.42813058,0.00016999,2]
[381950596,1756441838828,-500.0,0.00016999,2]
[381950598,1756441838837,-500.0,0.00016999,2]
[381950599,1756441838847,-290.1677981,0.00016999,2]
[381950601,1756441838856,-500.0,0.00016999,2]
[381950604,1756441838865,-296.00944049,0.00016999,2]
[381950606,1756441838875,-500.0,0.00016999,2]
[381950608,1756441838884,-500.0,0.00016999,2]
[381950610,1756441838894,-500.0,0.00016999,2]
[381950612,1756441838903,-376.9409505,0.00016999,2]
[381950614,1756441838913,-283.00161697,0.00016999,2]
[381950616,1756441838922,-500.0,0.00016999,2]
[381950618,1756441838931,-500.0,0.00016999,2]
[381950620,1756441838942,-320.91487288,0.00016999,2]
[381950622,1756441838951,-86853.17273144,0.00017,2]
[381950624,1756441838960,-744.2227583,0.00017079,2]
[381950626,1756441838969,-1115.34652538,0.000175,2]
[381950628,1756441838978,-1893.33461336,0.000176,2]
[381950630,1756441838988,-501.53040005,0.00017973,2]
[381950632,1756441838997,-564.64663656,0.00017973,2]
[381950634,1756441839007,-500.0,0.00017973,2]
[381950636,1756441839016,-500.0,0.00017973,2]
[381950638,1756441839025,-276.38,0.0001799,3]
[381950640,1756441839034,-357.08,0.0001799,3]
[381950642,1756441839043,-178.54,0.0001799,3]
[381950644,1756441839052,-535.63,0.0001799,3]
[381950646,1756441839062,-53319.80409318,0.00018,2]
[381950648,1756441839071,-2204.6981448,0.00018,2]
[381950650,1756441839080,-5000.0,0.00018328,6]
[381950652,1756441839089,-5000.0,0.00018513,6]
[381950654,1756441839099,-563.07229694,0.00018521,2]
[381950656,1756441839108,-298.73321036,0.00018521,2]
[381950658,1756441839117,-420.0,0.00018567,2]
[381950660,1756441839126,-308.8265073,0.00018969,2]
[381950662,1756441839136,-6793.48211021,0.00019058,2]
[381950664,1756441839145,-455.98365779,0.00019062,2]
[381950666,1756441839154,-250692.58282122,0.00019063,2]
[381950668,1756441839163,-500.0,0.00019073,2]
[381950670,1756441839172,-500.0,0.00019073,2]
[381950672,1756441839181,-517.74893661,0.00019073,2]
[381950674,1756441839190,-500.0,0.00019073,2]
[381950676,1756441839200,-500.0,0.00019073,2]
[381950678,1756441839209,-500.0,0.00019073,2]
[381950680,1756441839217,-500.0,0.00019073,2]
[381950682,1756441839227,-500.0,0.00019073,2]
[381950684,1756441839236,-500.0,0.00019073,2]
[381950686,1756441839245,-500.0,0.00019073,2]
[381950688,1756441839254,-1200.0,0.00019158,2]
[381950690,1756441839264,-229.1439449,0.00019159,2]
[381950692,1756441839272,-552.76,0.0001936,3]
[381950694,1756441839282,-714.16,0.0001936,3]
[381950696,1756441839292,-357.08,0.0001936,3]
[381950698,1756441839302,-1000.0,0.00019468,2]
[381950700,1756441839311,-1000.0,0.00019621,2]
[381950702,1756441839320,-515.92970608,0.00019621,2]
[381950704,1756441839329,-515.90423381,0.00019621,2]
[381950706,1756441839339,-1000.0,0.00019621,2]
[381950708,1756441839349,-561.63322028,0.00019621,2]
[381950709,1756441839357,-184.68034822,0.00019621,2]
[381950712,1756441839367,-1000.0,0.00019621,2]
[381950714,1756441839376,-1000.0,0.00019621,2]
[381950715,1756441839386,-1000.0,0.00019621,2]
[381950717,1756441839395,-11136.4963969,0.000199,2]
[381950720,1756441839404,-3233.73568225,0.000199,2]
[381950721,1756441839414,-3041.1544499,0.0001991,2]
[381950723,1756441839423,-160.0,0.0002,3]
[381950725,1756441839432,-14446.44759514,0.0002,2]
[381950727,1756441839441,-3660.40536009,0.0002,20]
[381950729,1756441839451,-365.21248062,0.0002,2]
[381950731,1756441839461,-49747.16790207,0.0002,2]
[381950733,1756441839471,-162069.72742924,0.0002,2]
[381950735,1756441839480,-12553.35470695,0.0002,2]
[381950737,1756441839489,-11879.10566866,0.0002,2]
[381950739,1756441839498,-14424.94555001,0.0002,2]
[381950741,1756441839507,-50049.1986264,0.0002,2]
[381950743,1756441839516,-21896.96765662,0.0002,2]
[381950745,1756441839525,-1019.6855145,0.0002,2]
[381950747,1756441839534,-160.0,0.0002001,2]
[381950749,1756441839544,-1000.0,0.00020168,2]
[381950751,1756441839553,-1500.0,0.00020168,2]
[381950753,1756441839562,-1500.0,0.00020168,2]
[381950755,1756441839571,-1500.0,0.00020168,2]
[381950757,1756441839581,-1500.0,0.00020168,2]
[381950759,1756441839593,-187.867935,0.00020187,2]
[381950761,1756441839603,-10000.0,0.00020255,2]
[381950763,1756441839612,-587.0,0.00020279,2]
[381950765,1756441839622,-279.838577,0.00020323,2]
[381950767,1756441839632,-737.23341254,0.00020326,2]
[381950769,1756441839641,-3389.89026238,0.000205,2]
[381950771,1756441839650,-260.0,0.00020558,2]
[381950773,1756441839660,-2005.1764754,0.00020716,2]
[381950775,1756441839670,-2003.03682746,0.00020716,2]
[381950777,1756441839679,-1504.418764,0.00020716,2]
[381950779,1756441839688,-2000.0,0.00020716,2]
[381950781,1756441839698,-809.60012614,0.00020819,2]
[381950783,1756441839707,-6579.09041627,0.00021,5]
[381950785,1756441839717,-272.07659332,0.00021,2]
[381950787,1756441839726,-203.53172818,0.00021,2]
[381950789,1756441839736,-324.05624537,0.00021,2]
[381950791,1756441839745,-360.0,0.00021106,2]
[381950793,1756441839755,-644.92565265,0.00021155,2]
[381950795,1756441839765,-4217.94038453,0.000212,2]
[381950797,1756441839774,-100000.0,0.00021263,2]
[381950799,1756441839784,-2500.0,0.00021264,2]
[381950801,1756441839793,-3233.73568215,0.00021389,2]
[381950803,1756441839803,-12616.66478477,0.000215,2]
[381950805,1756441839812,-6823.6450068,0.00021571,2]
[381950807,1756441839822,-460.0,0.00021654,2]
[381950810,1756441839832,-613.03801579,0.000217,2]
[381950812,1756441839841,-4000.0,0.00021759,4]
[381950815,1756441839850,-3000.0,0.00021812,2]
[381950818,1756441839859,-225.85698014,0.00021846,2]
[381950820,1756441839869,-510.40924109,0.00021875,2]
[381950822,1756441839878,-417.15472785,0.00021922,2]
[381950824,1756441839887,-6793.4821102,0.00021969,2]
[381950826,1756441839896,-355.35352368,0.00022,2]
[381950828,1756441839906,-822.72,0.00022,7]
[381950830,1756441839915,-5542.82,0.00022,7]
[381950832,1756441839924,-192.92474915,0.000221,2]
[381950834,1756441839934,-401.27,0.000221,2]
[381950837,1756441839943,-823.0,0.00022149,2]
[381950839,1756441839952,-560.0,0.00022202,2]
[381950842,1756441839962,-3500.0,0.0002236,2]
[381950844,1756441839971,-250.0,0.00022463,2]
[381950846,1756441839980,-279.06846716,0.000225,2]
[381950848,1756441839989,-151.0,0.000225,6]
[381950850,1756441839999,-160.0,0.00022701,2]
[381950852,1756441840008,-11358.84933845,0.00022705,2]
[381950854,1756441840018,-1163.163103,0.00022721,2]
[381950856,1756441840027,-660.0,0.0002275,2]
[381950859,1756441840036,-500.0,0.00022773,2]
[381950861,1756441840046,-261.41699536,0.00022773,2]
[381950863,1756441840056,-500.0,0.00022773,2]
[381950865,1756441840065,-505.9782366,0.00022773,2]
[381950867,1756441840075,-538.42109478,0.00022788,2]
[381950869,1756441840084,-3233.73568215,0.00022879,2]
[381950871,1756441840093,-4000.0,0.00022908,2]
[381950873,1756441840103,-737.12607984,0.00022951,2]
[381950875,1756441840112,-12500.0,0.00022995,7]
[381950877,1756441840122,-529.77114056,0.00022995,7]
[381950879,1756441840131,-425.57542551,0.00022995,7]
[381950881,1756441840140,-160.0,0.00022995,7]
[381950883,1756441840150,-417.15472785,0.00022995,7]
[381950885,1756441840160,-12290.90653408,0.00023,2]
[381950887,1756441840169,-27062.52598748,0.00023,2]
[381950889,1756441840178,-12500.0,0.00023004,7]
[381950891,1756441840188,-2893.39547626,0.0002301,5]
[381950893,1756441840197,-12500.0,0.00023013,7]
[381950895,1756441840207,-760.0,0.00023298,2]
[381950897,1756441840217,-829.09060518,0.00023321,2]
[381950899,1756441840226,-1000.0,0.00023321,2]
[381950901,1756441840235,-4500.0,0.00023456,2]
[381950903,1756441840245,-279.838577,0.00023747,2]
[381950905,1756441840255,-860.0,0.00023846,2]
[381950907,1756441840264,-500.0,0.00023973,2]
[381950909,1756441840274,-500.0,0.00023973,2]
[381950911,1756441840283,-218.89,0.0002398,3]
[381950913,1756441840292,-656.67,0.0002398,3]
[381950915,1756441840302,-160.0,0.00024,7]
[381950917,1756441840311,-232.6790651,0.00024,7]
[381950919,1756441840322,-160.0,0.00024,7]
[381950921,1756441840331,-845.57753514,0.00024,7]
[381950923,1756441840343,-1705.17140275,0.00024,2]
[381950925,1756441840352,-47240.43938534,0.00024,5]
[381950927,1756441840362,-457.02666089,0.00024,2]
[381950929,1756441840371,-3028.49742416,0.00024,30]
[381950931,1756441840381,-423.281792,0.00024,7]
[381950933,1756441840392,-423.281792,0.00024,7]
[381950935,1756441840402,-151.0,0.00024,7]
[381950937,1756441840411,-423.281792,0.00024,7]
[381950939,1756441840420,-151.0,0.00024,7]
[381950941,1756441840430,-423.281792,0.00024,7]
[381950943,1756441840439,-151.0,0.00024,7]
[381950945,1756441840449,-151.0,0.00024,7]
[381950947,1756441840458,-160.0,0.00024,7]
[381950949,1756441840468,-217.30324474,0.00024,7]
[381950951,1756441840477,-151.0,0.00024,7]
[381950953,1756441840486,-151.0,0.00024,7]
[381950955,1756441840496,-5000.0,0.00024004,2]
[381950957,1756441840505,-1152.0,0.00024192,2]
[381950959,1756441840515,-3233.73568215,0.00024368,2]
[381950961,1756441840524,-960.0,0.00024394,2]
[381950963,1756441840534,-5542.82,0.000244,7]
[381950965,1756441840543,-1000.0,0.00024521,2]
[381950968,1756441840553,-1000.0,0.00024521,2]
[381950971,1756441840563,-5500.0,0.00024552,2]
[381950974,1756441840572,-822.72,0.000246,7]
[381950977,1756441840583,-4000.08,0.00024648,2]
[381950981,1756441840598,-332575.35489994,0.0002465,2]
[381950984,1756441840607,-505.62482702,0.0002465,2]
[381950986,1756441840616,-423.281792,0.0002465,7]
[381950989,1756441840627,-423.281792,0.0002465,7]
[381950991,1756441840636,-151.0,0.0002465,7]
[381950992,1756441840645,-423.281792,0.0002465,7]
[381950994,1756441840656,-151.0,0.0002465,7]
[381950996,1756441840665,-423.281792,0.0002465,7]
[381950999,1756441840675,-151.0,0.0002465,7]
[381951001,1756441840684,-151.0,0.0002465,7]
[381951003,1756441840694,-151.0,0.0002465,7]
[381951005,1756441840703,-151.0,0.0002465,7]
[381951007,1756441840713,-150.0,0.00024658,2]
[381951009,1756441840722,-380.0,0.00024658,2]
[381951011,1756441840732,-151.0,0.00024658,7]
[381951013,1756441840741,-151.0,0.00024658,7]
[381951015,1756441840750,-151.0,0.00024658,7]
[381951017,1756441840759,-53567.9037571,0.00024658,2]
[381951018,1756441840768,-151.0,0.00024695,2]
[381951021,1756441840778,-151.0,0.00024695,2]
[381951023,1756441840787,-187.78006525,0.00024695,2]
[381951025,1756441840796,-151.0,0.00024695,2]
[381951027,1756441840805,-151.0,0.00024695,2]
[381951028,1756441840815,-151.0,0.00024695,2]
[381951031,1756441840825,-151.0,0.00024695,2]
[381951033,1756441840835,-151.0,0.00024695,2]
[381951035,1756441840844,-151.0,0.00024695,2]
[381951037,1756441840855,-151.0,0.00024695,2]
[381951039,1756441840864,-151.0,0.00024695,2]
[381951041,1756441840873,-940.47783917,0.00024695,2]
[381951043,1756441840883,-151.0,0.00024695,2]
[381951045,1756441840892,-151.0,0.00024695,2]
[381951047,1756441840902,-2347.87260389,0.00024695,2]
[381951049,1756441840911,-250.0,0.00024695,2]
[381951051,1756441840920,-250.0,0.00024695,2]
[381951053,1756441840930,-250.0,0.00024695,2]
[381951055,1756441840939,-250.0,0.00024695,2]
[381951057,1756441840950,-500.0,0.00024695,2]
[381951059,1756441840959,-250.0,0.00024695,2]
[381951061,1756441840969,-500.0,0.00024695,2]
[381951063,1756441840978,-250.0,0.00024695,2]
[381951065,1756441840987,-500.0,0.00024695,2]
[381951067,1756441840996,-250.0,0.00024695,2]
[381951069,1756441841006,-270.47462567,0.00024695,2]
[381951071,1756441841017,-500.0,0.00024695,2]
[381951073,1756441841030,-2434.74389024,0.0002475,2]
[381951075,1756441841040,-10272.79092591,0.00024774,2]
[381951077,1756441841050,-4000.0,0.00024799,4]
[381951079,1756441841060,-678.322815,0.000248,2]
[381951081,1756441841069,-184.137332,0.000248,2]
[381951083,1756441841079,-2524.82941417,0.00024805,2]
[381951085,1756441841087,-194.29662769,0.00024832,8]
[381951087,1756441841097,-720.563,0.00024832,8]
[381951089,1756441841106,-2618.2481025,0.0002486,2]
[381951100,1756441841208,-150.0,0.00024873,2]
[381951102,1756441841218,-500.0,0.00024873,2]
[381951104,1756441841228,-500.0,0.00024873,2]
[381951106,1756441841237,-500.0,0.00024873,2]
[381951108,1756441841248,-500.0,0.00024873,2]
[381951111,1756441841258,-501.16424268,0.00024873,2]
[381951113,1756441841271,-6793.4821102,0.0002488,2]
[381951115,1756441841281,-223822.46155771,0.000249,2]
[381951117,1756441841296,-16924.33168654,0.000249,2]
[381951119,1756441841308,-3241.23471311,0.000249,2]
[381951142,1756441841524,-216.21406313,0.00022995,7]
[381951144,1756441841534,-500.0,0.00024695,2]
[381951146,1756441841544,-503.73084522,0.00024695,2]
[381951148,1756441841554,-99811.55335915,0.000249,2]
[381951153,1756441841596,5000.0,0.000167,2]
[381951312,1756441843413,-178.86528761,0.0002489,10]
[381951329,1756441902135,1213.0,0.000167,2]
[381951332,1756442146206,185.469459,0.00013699,2]
[381951333,1756442637892,340.87163441,0.000167,2]
[381951334,1756442637914,4659.12836559,0.000167,2]
[381951335,1756442653643,5000.0,0.000167,2]
[381951336,1756442662355,340.88163441,0.000167,2]
[381951337,1756442662378,4659.11836559,0.000167,2]
[381951338,1756442678215,5000.0,0.000167,2]
[381951339,1756442686227,340.89163441,0.000167,2]
[381951340,1756442686248,4659.10836559,0.000167,2]
[381951341,1756442702066,5000.0,0.000167,2]
[381951342,1756442710111,340.90163441,0.000167,2]
[381951343,1756442710133,4196.65830849,0.000167,2]
[381951344,1756442726232,5000.0,0.000167,2]
[381951346,1756442936917,803.35169151,0.000167,2]
[381951347,1756442936947,4196.64830849,0.000167,2]
[381951348,1756442960783,288.09008906,0.000167,2]
[381951401,1756443038746,-7426.8498363,0.00016979,2]
[381951403,1756443038756,-5000.0,0.00017008,2]
[381951405,1756443038766,-300.0,0.00017079,2]
[381951407,1756443038775,-1200.0,0.00017079,2]
[381951409,1756443038785,-300.0,0.00017079,2]
[381951411,1756443038794,-300.0,0.00017079,2]
[381951413,1756443038803,-300.0,0.00017079,2]
[381951415,1756443038812,-300.0,0.00017079,2]
[381951417,1756443038822,-1200.0,0.0001718,2]
[381951419,1756443038831,-285.964129,0.00018119,2]
[381951421,1756443038840,-206.13790938,0.0001864,2]
[381951423,1756443038850,-420.0,0.00018653,2]
[381951425,1756443038859,-300.0,0.00018653,2]
[381951427,1756443038869,-420.0,0.00018653,2]
[381951429,1756443038879,-1200.0,0.00018745,2]
[381951431,1756443038888,-366.55119567,0.00018936,2]
[381951433,1756443038897,-351.0936473,0.00019005,2]
[381951435,1756443038906,-248.087761,0.00019863,2]
[381951437,1756443038916,-11164.1597682,0.00019863,2]
[381951439,1756443038926,-3722.40273964,0.000199,2]
[381951441,1756443038935,-160.0,0.0002,3]
[381951443,1756443038944,-160.0,0.0002,3]
[381951445,1756443038954,-185.469459,0.00020187,2]
[381951447,1756443038963,-502.48789012,0.0002025,2]
[381951449,1756443038972,-587.0,0.00020371,2]
[381951451,1756443038982,-3722.40273941,0.00021389,2]
[381951453,1756443038992,-11358.84933845,0.00021963,2]
[381951455,1756443039003,-417.15472785,0.00021971,2]
[381951457,1756443039013,-160.0,0.00021971,2]
[381951459,1756443039022,-500.0,0.00022,2]
[381951461,1756443039031,-160.0,0.00022,2]
[381951463,1756443039041,-267.51,0.000221,2]
[381951465,1756443039050,-823.0,0.00022248,2]
[381951467,1756443039059,-250.52565908,0.00022473,2]
[381951469,1756443039068,-1007.65629494,0.00022548,2]
[381951471,1756443039078,-260.0,0.00022548,2]
[381951473,1756443039087,-834.4,0.0002298,10]
[381951475,1756443039097,-695.34,0.0002298,10]
[381951477,1756443039106,-305.63219372,0.00022989,2]
[381951479,1756443039115,-500.0,0.00022989,2]
[381951481,1756443039125,-500.0,0.00022989,2]
[381951483,1756443039134,-500.0,0.00022989,2]
[381951485,1756443039146,-500.0,0.00022989,2]
[381951487,1756443039155,-330.45313705,0.00022989,2]
[381951489,1756443039164,-500.0,0.00022989,2]
[381951491,1756443039174,-500.0,0.00022989,2]
[381951493,1756443039183,-500.0,0.00022989,2]
[381951495,1756443039192,-500.0,0.00022989,2]
[381951497,1756443039201,-500.0,0.00022989,2]
[381951499,1756443039210,-500.0,0.00022989,2]
[381951501,1756443039219,-500.0,0.00022989,2]
[381951503,1756443039229,-500.0,0.00022989,2]
[381951505,1756443039238,-500.0,0.00022989,2]
[381951516,1756443039326,-500.0,0.00022989,2]
[381951519,1756443039354,-500.0,0.00022989,2]
[381951521,1756443039364,-301.78245724,0.00022989,2]
[381951523,1756443039374,-500.0,0.00022989,2]
[381951525,1756443039383,-500.0,0.00022989,2]
[381951527,1756443039392,-500.0,0.00022989,2]
[381951529,1756443039402,-500.0,0.00022989,2]
[381951531,1756443039411,-198.11129077,0.00022989,2]
[381951533,1756443039421,-329.09021539,0.00022989,2]
[381951535,1756443039431,-245.4278634,0.00022989,2]
[381951537,1756443039440,-500.0,0.00022989,2]
[381951539,1756443039449,-500.0,0.00022989,2]
[381951541,1756443039459,-500.0,0.00022989,2]
[381951543,1756443039470,-500.0,0.00022989,2]
[381951545,1756443039479,-500.0,0.00022989,2]
[381951547,1756443039488,-504.60242548,0.00022989,2]
[381951549,1756443039498,-500.0,0.00022989,2]
[381951551,1756443039507,-500.0,0.00022989,2]
[381951553,1756443039517,-500.0,0.00022989,2]
[381951555,1756443039526,-500.0,0.00022989,2]
[381951557,1756443039535,-500.0,0.00022989,2]
[381951559,1756443039544,-500.0,0.00022989,2]
[381951561,1756443039554,-500.0,0.00022989,2]
[381951563,1756443039564,-500.0,0.00022989,2]
[381951565,1756443039573,-500.0,0.00022989,2]
[381951567,1756443039582,-500.0,0.00022989,2]
[381951569,1756443039592,-500.0,0.00022989,2]
[381951571,1756443039602,-500.0,0.00022989,2]
[381951573,1756443039612,-500.0,0.00022989,2]
[381951575,1756443039622,-500.0,0.00022989,2]
[381951577,1756443039631,-500.0,0.00022989,2]
[381951579,1756443039640,-265.0,0.00022989,2]
[381951581,1756443039650,-500.0,0.00022989,2]
[381951584,1756443039660,-500.0,0.00022989,2]
[381951585,1756443039669,-500.0,0.00022989,2]
[381951588,1756443039679,-500.0,0.00022989,2]
[381951590,1756443039689,-500.0,0.00022989,2]
[381951592,1756443039699,-500.0,0.00022989,2]
[381951594,1756443039708,-500.0,0.00022989,2]
[381951596,1756443039718,-500.0,0.00022989,2]
[381951598,1756443039727,-500.0,0.00022989,2]
[381951600,1756443039736,-596.37335855,0.00022989,2]
[381951602,1756443039746,-500.0,0.00022989,2]
[381951604,1756443039756,-621.21860685,0.00022989,2]
[381951606,1756443039766,-500.0,0.00022989,2]
[381951608,1756443039775,-500.0,0.00022989,2]
[381951610,1756443039785,-530.09691821,0.00022989,2]
[381951612,1756443039795,-500.0,0.00022989,2]
[381951613,1756443039804,-500.0,0.00022989,2]
[381951615,1756443039814,-500.0,0.00022989,2]
[381951618,1756443039824,-500.0,0.00022989,2]
[381951620,1756443039833,-500.0,0.00022989,2]
[381951622,1756443039843,-500.0,0.00022989,2]
[381951624,1756443039852,-500.0,0.00022989,2]
[381951626,1756443039862,-500.0,0.00022989,2]
[381951628,1756443039871,-500.0,0.00022989,2]
[381951630,1756443039881,-500.0,0.00022989,2]
[381951632,1756443039890,-503.59164615,0.00022989,2]
[381951634,1756443039900,-500.0,0.00022989,2]
[381951636,1756443039909,-500.0,0.00022989,2]
[381951638,1756443039918,-500.0,0.00022989,2]
[381951640,1756443039927,-500.0,0.00022989,2]
[381951642,1756443039936,-500.0,0.00022989,2]
[381951644,1756443039945,-100000.0,0.0002299,2]
[381951646,1756443039955,-360.0,0.00023096,2]
[381951648,1756443039965,-248.087761,0.00023288,2]
[381951650,1756443039975,-190.0,0.00023502,2]
[381951652,1756443039985,-460.0,0.00023644,2]
[381951654,1756443039994,-875.56,0.0002397,3]